[Event "40th Cappelle Open 2024"]
[Site "Cappelle-la-Grande"]
[Date "2024.03.02"]
[Round "1.6"]
[White "Roger, Mehdi"]
[Black "Can, Emre"]
[Result "0-1"]
[ECO "B90"]
[WhiteElo "2106"]
[BlackElo "2551"]
[Annotator "TA"]
[PlyCount "82"]
[EventDate "2024.03.02"]
[EventType "swiss"]
[EventCountry "FRA"]
[SourceTitle "playchess.com"]
[Source "ChessBase"]
[SourceQuality "1"]
[TimeControl "40/5400+30:1800+30"]

{[%evp 20,82,30,23,12,-8,-4,1,56,40,54,16,14,15,20,19,9,-25,-32,-13,-26,-151,-150,-190,-184,-177,-170,-216,-197,-229,-220,-202,-135,-255,-182,-225,-229,-216,-225,-225,-230,-339,-327,-434,-320,-375,-365,-358,-350,-327,-332,-623,-604,-582,-693,-810,-797,-638,-552,-718,-700,-802,-778,-665,-603]} 1. e4 {[%emt 0:00:03]} c5 {[%emt 0:00:12]} 2. Nf3 {[%emt 0:00:06]} d6 {[%emt 0:00:14]} 3. d4 {[%emt 0:00:18]} cxd4 {[%emt 0:00:23]} 4. Nxd4 {[%emt 0:00:06]} Nf6 {[%emt 0:00:17]} 5. Nc3 {[%emt 0:00:07]} a6 {[%emt 0:00:11]} 6. f3 {[%emt 0:01:50]} e5 {[%emt 0:01:07]} 7. Nb3 {[%emt 0:00:05]} Be6 {[%emt 0:02:32]} 8. Be3 {[%emt 0:00:23]} Be7 {[%emt 0:00:23]} 9. Qd2 {[%emt 0:00:21]} h5 {[%emt 0:00:16]} 10. Nd5 {[%emt 0:00:52]} Nxd5 {[%emt 0:00:46]} 11. exd5 {[%emt 0:00:06]} Bf5 {[%emt 0:00:15]} 12. Bd3 {[%emt 0:04:25]} Bxd3 {[%emt 0:02:45]} 13. Qxd3 {[%emt 0:00:11]} Bh4+ {[%emt 0:00:50]} (13... Nd7 $11) 14. g3 $14 {[%emt 0:00:38]} Bg5 {[%emt 0:00:08]} 15. O-O-O {[%emt 0:02:24]} Bxe3+ {[%emt 0:02:02]} 16. Qxe3 {[%emt 0:00:05]} Nd7 {[%emt 0:00:21]} 17. Kb1 {[%emt 0:06:15]} Rc8 {[%emt 0:03:18]} 18. h4 {[%emt 0:23:30]} Nf6 {[%emt 0:02:16]} 19. Qg5 {[%emt 0:15:16]} O-O {[%emt 0:01:27]} 20. g4 {[%emt 0:00:21] [#] Black continues to play with concentration.} (20. c3 $11 {remains equal.}) 20... hxg4 $1 $17 {[%emt 0:00:31]} 21. fxg4 {[%emt 0:07:03] [#]} Rc4 $1 {[%emt 0:03:27]} 22. Rhg1 {[%emt 0:03:08]} Qc8 {[%emt 0:06:16]} 23. Qe3 {[%emt 0:17:25]} (23. Nd2 {is a better defense.} Rxg4 (23... Rxc2 24. Qe3 $17) 24. Rxg4 Qxg4 25. Kc1) 23... Rxg4 $19 {[%emt 0:03:07]} (23... Rxc2 24. Nd2 $17) 24. Qb6 {[%emt 0:01:41]} Rxg1 {[%emt 0:09:06]} (24... Rxh4 25. Qxd6 Qf5 26. Qb6 $15) 25. Rxg1 {[%emt 0:00:17]} Qd7 {[%emt 0:03:18]} (25... Nxd5 26. Qxd6 Ne3 (26... Qe6 27. Qxe6 fxe6 28. Nc5 $11) 27. Qd2) 26. Na5 {[%emt 0:06:11]} (26. Nc5 $17 Qd8 (26... dxc5 $2 {loses.} 27. Qxf6 g6 28. h5 $18) 27. Qxd8 Rxd8 28. Nxb7) 26... Nxd5 {[%emt 0:08:12]} 27. Qxb7 {[%emt 0:00:05] [#]} Nc3+ $1 {[%emt 0:03:34][%mdl 512]} 28. bxc3 {[%emt 0:06:47]} Qxb7+ {[%emt 0:00:17]} 29. Nxb7 {[%emt 0:00:04][%mdl 4096] Endgame. KRN-KR} Rb8 {[%emt 0:00:08]} 30. Rg4 {[%emt 0:00:07]} (30. Kc1 $142 Rxb7 31. c4) 30... Rxb7+ {[%emt 0:00:28] KR-KR} 31. Rb4 {[%emt 0:00:05]} Rd7 {[%emt 0:02:19]} 32. Rb6 {[%emt 0:00:28]} a5 {[%emt 0:00:10]} 33. Kc1 {[%emt 0:00:16]} f5 {[%emt 0:00:18]} 34. Kd2 {[%emt 0:00:15]} Kf7 {[%emt 0:00:19]} 35. Ra6 $2 {[%emt 0:00:15]} (35. c4) 35... Kg6 {[%emt 0:00:56] Black is clearly winning.} 36. Rxa5 {[%emt 0:00:19]} Kh5 {[%emt 0:00:08]} 37. Rd5 {[%emt 0:01:24]} Kxh4 {[%emt 0:03:16]} 38. c4 {[%emt 0:00:06]} Rc7 {[%emt 0:00:06]} 39. Rxd6 {[%emt 0:00:37]} Rxc4 {[%emt 0:01:33]} 40. Re6 {[%emt 0:01:30]} e4 {[%emt 0:02:36]} 41. Rg6 {[%emt 0:32:50]} Rc7 {[%emt 0:31:04] Weighted Error Value: White=0.50/Black=0.11 (very precise) .  Mistake:       	White=5     	Black=1      Inaccurate:     	White=3     	Black=1      OK:         	White=5     	Black=15     Best:        	White=2     	Black=2      Strong:       	---       	Black=2} 0-1

[Event "40th Cappelle Open 2024"]
[Site "Cappelle-la-Grande"]
[Date "2024.03.02"]
[Round "1.7"]
[White "Bellahcene, Bilel"]
[Black "Bourgois, Bastien"]
[Result "1-0"]
[ECO "B32"]
[WhiteElo "2522"]
[BlackElo "2102"]
[Annotator "TA"]
[PlyCount "105"]
[EventDate "2024.03.02"]
[EventType "swiss"]
[EventCountry "FRA"]
[SourceTitle "playchess.com"]
[Source "ChessBase"]
[SourceQuality "1"]
[TimeControl "40/5400+30:1800+30"]

{[%evp 21,105,0,18,5,8,4,16,22,29,30,24,20,19,19,23,23,22,9,19,13,16,20,13,10,15,0,0,0,4,9,24,25,25,12,31,11,62,59,56,53,64,50,62,42,109,99,97,93,135,132,116,121,113,112,152,134,155,0,148,0,159,159,191,183,225,231,426,389,466,438,659,574,631,552,622,592,1303,836,4810,4714,4706,4622,1225,179,498,104]} 1. e4 {[%emt 0:29:04]} c5 {[%emt 0:00:13]} 2. Nf3 {[%emt 0:01:16]} Nc6 {[%emt 0:00:13]} 3. d4 {[%emt 0:00:25]} cxd4 {[%emt 0:00:07]} 4. Nxd4 {[%emt 0:00:03]} e5 {[%emt 0:00:14]} 5. Nb5 {[%emt 0:00:03]} a6 {[%emt 0:00:21]} 6. Nd6+ {[%emt 0:02:09]} Bxd6 {[%emt 0:00:06]} 7. Qxd6 {[%emt 0:00:01]} Qf6 {[%emt 0:00:11]} 8. Qd1 {[%emt 0:00:25]} Qg6 {[%emt 0:00:28]} 9. Nc3 {[%emt 0:00:40]} d5 {[%emt 0:00:34]} 10. Nxd5 {[%emt 0:07:24]} Qxe4+ {[%emt 0:00:24]} 11. Ne3 {[%emt 0:06:32]} Nf6 {[%emt 0:06:41]} 12. Bd3 {[%emt 0:00:20]} Qh4 {[%emt 0:01:06]} 13. O-O {[%emt 0:00:44]} e4 {[%emt 0:10:50]} 14. Be2 {[%emt 0:00:06] The position is equal.} O-O {[%emt 0:00:50][%cal Bh8f8,Bf8d8,Bd8d6][%mdl 32]} 15. Qe1 {[%emt 0:00:56]} Be6 {[%emt 0:08:13]} 16. f4 {[%emt 0:01:57]} Qxe1 {[%emt 0:01:54]} 17. Rxe1 {[%emt 0:00:05]} Nd4 {[%emt 0:00:46]} 18. Bd1 {[%emt 0:00:13]} Rfd8 {[%emt 0:06:55]} 19. h3 {[%emt 0:00:31]} Nd5 {[%emt 0:06:47]} 20. c3 {[%emt 0:12:47] [#] Nxd5 is the strong threat.} Nxe3 {[%emt 0:04:10]} 21. Bxe3 {[%emt 0:00:03]} Nf5 {[%emt 0:00:27]} 22. Bb6 {[%emt 0:03:00][%csl LRd8,LRe4]} Rd6 {[%emt 0:02:29]} 23. Bc5 {[%emt 0:02:07]} Rd2 {[%emt 0:01:01]} 24. Rxe4 {[%emt 0:02:40]} Rxb2 {[%emt 0:04:39][%cal Oa8c8]} 25. Rb4 {[%emt 0:00:29]} Rxb4 {[%emt 0:05:27]} 26. cxb4 {[%emt 0:00:06]} Bd5 {[%emt 0:00:29]} 27. Bc2 {[%emt 0:05:19]} Nh4 {[%emt 0:05:38]} 28. Rd1 {[%emt 0:07:54]} Bc6 {[%emt 0:01:35]} (28... Bxg2 $11 29. Bf2 Bf3 30. Bxh4 Bxd1 31. Bxd1 Rc8) 29. g3 $14 {[%emt 0:00:10]} Ng6 {[%emt 0:04:49]} 30. Kf2 {[%emt 0:05:05]} Re8 {[%emt 0:02:03]} 31. Bb3 {[%emt 0:02:38]} Nf8 {[%emt 0:05:40]} 32. Bd5 {[%emt 0:03:22] White is more active. A strong pair of Bishops.} Ne6 {[%emt 0:05:07]} (32... Bxd5 $14 33. Rxd5 g6) 33. Bxc6 $16 {[%emt 0:04:22]} bxc6 {[%emt 0:00:01][%mdl 4096] Endgame. KRB-KRN} 34. Be3 {[%emt 0:01:46]} Nc7 {[%emt 0:04:11]} 35. Rd6 {[%emt 0:02:05]} Nd5 {[%emt 0:00:56]} 36. Bc5 {[%emt 0:00:06]} Rc8 {[%emt 0:00:29]} 37. a3 {[%emt 0:01:17]} f6 {[%emt 0:04:18]} 38. Rd7 {[%emt 0:00:19]} Re8 {[%emt 0:02:52]} 39. Rd6 {[%emt 0:00:34]} Rc8 {[%emt 0:00:46]} 40. Rd7 {[%emt 0:00:03]} Re8 $1 {[%emt 0:00:28]} 41. Kf3 {[%emt 0:09:17]} Re1 {[%emt 0:03:08]} 42. Ra7 {[%emt 0:03:01]} Nc3 {[%emt 0:03:43]} 43. Rxa6 {[%emt 0:01:03]} Ne4 $2 {[%emt 0:00:27] [#]} (43... Rd1 {was called for.} 44. Kg4 (44. Rxc6 Rd3+ 45. Kg2 Rd2+ 46. Kf1 Rd3 $18) 44... g6 45. Rxc6 Rd3) 44. Rxc6 $18 {[%emt 0:00:50]} Nd2+ {[%emt 0:00:24]} 45. Kf2 {[%emt 0:00:18]} Ra1 {[%emt 0:00:15]} (45... Rc1 $142 46. a4 Kf7 47. Rc7+ Kg6) 46. b5 {[%emt 0:04:13]} Ne4+ {[%emt 0:00:41]} 47. Ke3 {[%emt 0:00:05]} Nxc5 {[%emt 0:00:10]} 48. Rxc5 {[%emt 0:00:02]} Rxa3+ {[%emt 0:00:10] KR-KR} 49. Kd4 {[%emt 0:00:03]} Rb3 {[%emt 0:01:23]} 50. Kc4 {[%emt 0:01:23]} Rb1 {[%emt 0:00:53]} 51. Kd5 {[%emt 0:00:04]} Kf7 {[%emt 0:00:41]} 52. Ke4 $2 {[%emt 0:17:05]} (52. Kc6 g5 53. fxg5) 52... Kg8 $2 {[%emt 0:30:07]} (52... Ke6 {is a better chance.} 53. Kd4 Kd6 54. Rc6+ Kd7) 53. Kf3 $2 {Weighted Error Value: White=0.26 (precise) /Black=0.27 (precise) .  Mistake:       	---       	Black=4      Inaccurate:     	---       	Black=4      OK:         	White=18    	Black=12     Best:        	White=1     	Black=4      Strong:       	---       	Black=1} ({Not} 53. Kd5 Kf7 54. Kc6 h6) (53. Kf5 $18 {is more deadly.}) 1-0

[Event "40th Cappelle Open 2024"]
[Site "Cappelle-la-Grande"]
[Date "2024.03.02"]
[Round "1.8"]
[White "Dancourt, Jean-Hugues"]
[Black "Valsecchi, Alessio"]
[Result "0-1"]
[ECO "B00"]
[WhiteElo "2090"]
[BlackElo "2490"]
[Annotator "TA"]
[PlyCount "91"]
[EventDate "2024.03.02"]
[EventType "swiss"]
[EventCountry "FRA"]
[SourceTitle "playchess.com"]
[Source "ChessBase"]
[SourceQuality "1"]
[TimeControl "40/5400+30:1800+30"]

{[%evp 12,91,74,26,33,6,10,-6,-2,0,0,-50,-20,-112,-83,-162,-168,-165,-165,-166,-162,-167,-170,-176,-172,-175,-181,-178,-172,-191,-169,-185,-171,-190,-163,-189,-177,-187,-179,-181,-177,-188,-187,-188,-196,-193,-193,-193,-206,-205,-205,-240,-227,-239,-245,-264,-262,-260,-258,-341,-335,-365,-375,-514,-521,-29982,-29983,-29982,-29980,-29986,-29987,-29987,-29988,-29989,-29990,-29990,-29991,-29991,-29992,-29992,-29992,-29994]} 1. e4 {[%emt 0:06:39]} c5 {[%emt 0:01:14]} 2. Nf3 {[%emt 0:00:10]} e6 {[%emt 0:00:44]} 3. c3 {[%emt 0:00:11]} b6 {[%emt 0:05:21]} 4. d4 {[%emt 0:00:43]} Bb7 {[%emt 0:02:17]} 5. Bd3 {[%emt 0:00:42]} Nf6 {[%emt 0:00:51]} 6. Qe2 {[%emt 0:02:10]} Be7 {[%emt 0:03:02]} 7. O-O {[%emt 0:03:07]} (7. dxc5 $16 bxc5 8. e5) 7... d5 $11 {[%emt 0:07:26]} 8. exd5 {[%emt 0:22:38]} Qxd5 {[%emt 0:01:07]} 9. c4 {[%emt 0:00:48]} Qh5 {[%emt 0:04:22] next ...Bxf3 is good for Black. The position is equal.} 10. d5 $1 {[%emt 0:04:56]} exd5 {[%emt 0:13:00]} 11. Bg5 {[%emt 0:08:57]} ({White should try} 11. cxd5 $11 Bxd5 12. Re1) 11... Nc6 {[%emt 0:12:00] Strongly threatening ...0-0-0.} 12. cxd5 {[%emt 0:26:35]} (12. Bxf6 $1 $11 {remains equal.} gxf6 13. cxd5 Qxd5 14. Nc3) 12... Nxd5 $17 {[%emt 0:01:42]} 13. Be4 {[%emt 0:00:03]} (13. Bxe7 $17 {might work better.} Ndxe7 14. Nc3) 13... Nd4 $19 {[%emt 0:02:50]} 14. Nxd4 {[%emt 0:05:20]} Qxe2 {[%emt 0:00:09]} ({But not} 14... Qxg5 15. Nf5 Rd8 16. h4 $11) 15. Nxe2 {[%emt 0:00:19] [#] And now Bxe7 would win.} Bxg5 {[%emt 0:00:10]} 16. Nec3 {[%emt 0:04:14]} O-O-O {[%emt 0:01:22]} 17. Bxd5 {[%emt 0:05:34]} Bxd5 {[%emt 0:00:17]} 18. Nxd5 {[%emt 0:00:02]} Rxd5 {[%emt 0:00:08]} 19. Nc3 {[%emt 0:00:03]} Rd7 {[%emt 0:01:01]} 20. a4 {[%emt 0:00:23]} a6 {[%emt 0:06:28]} 21. Ne4 {[%emt 0:02:40]} Be7 {[%emt 0:00:21]} 22. Rfc1 {[%emt 0:00:21]} Rc7 {[%emt 0:00:53]} 23. f3 {[%emt 0:02:53]} Rd8 {[%emt 0:00:29]} 24. g4 {[%emt 0:01:20]} Kb7 {[%emt 0:01:03]} 25. Kf2 {[%emt 0:00:44]} Rd5 {[%emt 0:01:26]} 26. Rd1 {[%emt 0:01:04]} Rcd7 {[%emt 0:00:24]} 27. Rxd5 {[%emt 0:00:03]} Rxd5 {[%emt 0:00:07][%mdl 4096] Endgame. KRB-KRN} 28. Ke2 {[%emt 0:00:20]} Kc6 {[%emt 0:01:11]} 29. Rc1 {[%emt 0:00:20]} f5 {[%emt 0:02:45]} 30. gxf5 {[%emt 0:00:35]} Rxf5 {[%emt 0:00:20]} 31. Rc2 {[%emt 0:00:22]} Bd6 {[%emt 0:01:17]} 32. Nxd6 {[%emt 0:01:29]} Kxd6 {[%emt 0:00:02] KR-KR} 33. Ke3 {[%emt 0:00:07]} Re5+ {[%emt 0:00:22]} 34. Kf4 {[%emt 0:00:16]} Rd5 {[%emt 0:00:07]} 35. Rg2 {[%emt 0:01:00]} Rd4+ {[%emt 0:00:26]} 36. Kf5 {[%emt 0:00:39]} g6+ {[%emt 0:00:15]} (36... Rxa4 37. Rxg7 c4 38. Rg1 $19 (38. Rxh7 Rb4 $17)) 37. Kf6 {[%emt 0:00:06]} Rxa4 {[%emt 0:00:38]} 38. Rg4 {[%emt 0:00:29]} Rxg4 {[%emt 0:03:21] Black mates.} 39. fxg4 {[%emt 0:00:02] KP-KP} c4 {[%emt 0:00:16]} 40. g5 {[%emt 0:00:11]} b5 {[%emt 0:00:44]} 41. h4 {[%emt 0:30:22]} b4 {[%emt 0:30:20]} 42. Kg7 {[%emt 0:00:26]} c3 {[%emt 0:00:15]} 43. bxc3 {[%emt 0:01:55]} bxc3 {[%emt 0:00:05]} 44. Kxh7 {[%emt 0:00:00]} c2 {[%emt 0:00:00]} 45. Kxg6 {[%emt 0:00:00]} c1=Q {[%emt 0:00:00]} ({And not} 45... c1=B 46. Kh7 a5 47. g6 $11) 46. h5 {[%emt 0:00:00] White got outplayed after the opening.   Weighted Error Value: White=0.39/Black=0.04 (flawless) .  Mistake:       	White=3     	---        Inaccurate:     	White=4     	Black=1      OK:         	White=7     	Black=17     Strong:       	White=1     	---} 0-1

[Event "40th Cappelle Open 2024"]
[Site "Cappelle-la-Grande"]
[Date "2024.03.02"]
[Round "1.9"]
[White "Girel, Joseph"]
[Black "Bianchi, Guillaume"]
[Result "1-0"]
[ECO "C41"]
[WhiteElo "2486"]
[BlackElo "2079"]
[Annotator "RC"]
[PlyCount "57"]
[EventDate "2024.03.02"]
[EventType "swiss"]
[EventCountry "FRA"]
[SourceTitle "playchess.com"]
[Source "ChessBase"]
[SourceQuality "1"]
[TimeControl "40/5400+30:1800+30"]

1. e4 {[%emt 0:00:06]} d6 {[%emt 0:00:15]} 2. d4 {[%emt 0:00:48]} Nf6 {[%emt 0:00:19]} 3. Nc3 {[%emt 0:00:23]} Nbd7 {[%emt 0:01:00]} 4. Nf3 {[%emt 0:02:28]} e5 {[%emt 0:00:38]} 5. Bc4 {[%emt 0:00:22]} Be7 {[%emt 0:00:35]} 6. O-O {[%emt 0:00:20]} c6 {[%emt 0:02:00]} 7. a4 {[%emt 0:01:20]} h6 {[%emt 0:04:15]} 8. a5 {[%emt 0:06:32]} Qc7 {[%emt 0:03:01]} 9. Re1 {[%emt 0:04:07]} O-O {[%emt 0:07:18]} 10. Ba2 {[%emt 0:03:55]} Re8 {[%emt 0:01:44]} 11. h3 {[%emt 0:01:28]} Nf8 {[%emt 0:07:56]} 12. d5 {[%emt 0:02:40]} c5 {[%emt 0:05:18]} 13. a6 {[%emt 0:03:50]} Ng6 {[%emt 0:10:09]} 14. axb7 {[%emt 0:01:46]} Qxb7 {[%emt 0:01:13]} 15. Nd2 {[%emt 0:01:18]} a5 {[%emt 0:04:12]} 16. Bb3 {[%emt 0:00:56]} Bd7 {[%emt 0:05:20]} 17. Nc4 {[%emt 0:04:16]} Qc7 {[%emt 0:02:51]} 18. Ba4 {[%emt 0:01:46]} Reb8 {[%emt 0:00:58]} 19. Bd2 {[%emt 0:01:37]} Rb4 {[%emt 0:05:05]} 20. b3 {[%emt 0:00:46]} Nf8 {[%emt 0:07:18]} 21. Ra2 {[%emt 0:03:50]} Bd8 {[%emt 0:03:03]} 22. Qa1 {[%emt 0:02:31]} Ne8 {[%emt 0:03:32]} 23. Ne2 {[%emt 0:03:37]} Rxa4 {[%emt 0:10:32]} 24. bxa4 {[%emt 0:00:33]} f5 {[%emt 0:02:17]} 25. f3 {[%emt 0:01:13]} Ng6 {[%emt 0:04:13]} 26. Nc3 {[%emt 0:02:27]} Bg5 {[%emt 0:01:29]} 27. Bxg5 {[%emt 0:01:26]} hxg5 {[%emt 0:00:05]} 28. Nb5 {[%emt 0:00:12]} Qd8 {[%emt 0:01:21]} 29. Nbxd6 {[%emt 0:01:15]} 1-0

[Event "40th Cappelle Open 2024"]
[Site "Cappelle-la-Grande"]
[Date "2024.03.02"]
[Round "1.10"]
[White "Cappon, John"]
[Black "Lamard, Guillaume"]
[Result "1/2-1/2"]
[ECO "B12"]
[WhiteElo "2072"]
[BlackElo "2483"]
[Annotator "TA"]
[PlyCount "75"]
[EventDate "2024.03.02"]
[EventType "swiss"]
[EventCountry "FRA"]
[SourceTitle "playchess.com"]
[Source "ChessBase"]
[SourceQuality "1"]
[TimeControl "40/5400+30:1800+30"]

{[%evp 10,75,18,15,20,4,11,14,17,17,12,8,0,18,15,10,7,8,26,19,52,17,91,39,39,9,26,20,38,42,290,140,215,209,211,210,292,282,433,435,444,437,437,436,421,430,493,442,431,341,327,322,318,319,307,300,342,339,384,377,395,395,364,320,316,254,230,100]} 1. e4 {[%emt 0:00:03]} c6 {[%emt 0:00:03]} 2. d4 {[%emt 0:00:09]} d5 {[%emt 0:00:04]} 3. e5 {[%emt 0:00:09]} Bf5 {[%emt 0:00:04]} 4. Nd2 {[%emt 0:00:07]} e6 {[%emt 0:01:07]} 5. Nb3 {[%emt 0:00:18]} Nd7 {[%emt 0:02:00]} 6. Nf3 {[%emt 0:03:46]} h6 {[%emt 0:02:24]} 7. Be3 {[%emt 0:01:45]} Ne7 {[%emt 0:00:11]} 8. Be2 {[%emt 0:08:44]} Bh7 {[%emt 0:01:29] The position is equal.} 9. O-O {[%emt 0:07:30]} Nf5 {[%emt 0:00:40]} 10. Bd2 {[%emt 0:02:08]} Be7 {[%emt 0:13:51]} 11. g4 {[%emt 0:04:34]} Nh4 {[%emt 0:00:05]} 12. Nxh4 {[%emt 0:00:12]} Bxh4 {[%emt 0:00:03]} 13. f4 {[%emt 0:00:32]} a5 {[%emt 0:03:23]} 14. a4 {[%emt 0:04:02]} Qb6 {[%emt 0:00:39]} 15. Be3 {[%emt 0:02:20]} f5 {[%emt 0:12:43]} (15... Be7 $11 {keeps the balance.}) 16. exf6 {[%emt 0:04:16]} ({Better is} 16. Kh1 $16) 16... gxf6 $14 {[%emt 0:04:22]} 17. Bd3 {[%emt 0:05:17] With the idea Bxh7.} Bxd3 {[%emt 0:11:15]} 18. Qxd3 {[%emt 0:01:37]} Rg8 {[%emt 0:01:55] Repels Qg6+} 19. Kh1 {[%emt 0:04:46] Black must now prevent Bd2.} Qc7 $2 {[%emt 0:11:26] [#] Black cannot hold the game after this.} (19... Rxg4 $2 20. Qe2 h5 21. h3 $18) ({Black should play} 19... Qa6 $1 $14) 20. Rg1 {[%emt 0:02:57]} (20. Bd2 $1 $18 {is the precise move to win.}) 20... e5 {[%emt 0:02:05]} (20... O-O-O $16 {is a better defense.} 21. Raf1 Qd6) 21. Qf5 $18 {[%emt 0:01:39]} O-O-O {[%emt 0:01:33] [#]} 22. Raf1 $1 {[%emt 0:05:02]} Qb6 {[%emt 0:11:38]} 23. Bd2 {[%emt 0:01:25]} (23. fxe5 fxe5 24. Bxh6 Be7 25. dxe5 c5) 23... exf4 {[%emt 0:05:17]} (23... Qa6 {was necessary.} 24. Qh5 (24. dxe5 fxe5 25. Nc5 Qe2 $14) (24. Bxa5 b6 $18) (24. fxe5 fxe5 25. Nc5 Qe2 $18) 24... Bg3 25. fxe5 (25. hxg3 e4 $18) 25... fxe5 26. hxg3 Qc4 27. dxe5 (27. Bxa5 Rde8 $18) (27. Bxh6 Qxc2 28. dxe5 Rde8 $18) 27... Qxc2) 24. Bxa5 {[%emt 0:00:43]} Qa6 {[%emt 0:00:23]} 25. Bxd8 {[%emt 0:00:21]} (25. Rxf4 b6 $18) 25... Rxd8 {[%emt 0:00:06]} 26. Nc5 {[%emt 0:00:30]} (26. Rxf4 Kb8 27. Qe6 Qc4 $18) (26. Qxf4 Qe2 27. Rg2 (27. Qxh6 Bf2 $18) 27... Qc4 $18) 26... Qc4 {[%emt 0:01:03]} 27. Rxf4 {[%emt 0:04:30]} (27. Qxf4 Nxc5 28. dxc5 Qxc2 29. Qf5+ (29. Qxh6 Bg5 $14) 29... Qxf5 30. gxf5 (30. Rxf5 Re8 $18) 30... Bg5 $18) 27... b6 {[%emt 0:01:20]} 28. b3 {[%emt 0:01:18]} Qe2 {[%emt 0:00:36]} 29. Qd3 {[%emt 0:00:22]} Re8 {[%emt 0:01:15][%cal Bd8e8,Be8e7,Be7e4][%mdl 32]} 30. Nxd7 {[%emt 0:03:48]} Kxd7 {[%emt 0:00:34][%cal Bc8d7,Bd7c7,Bc7b7,Bb7a6][%mdl 32]} 31. Qf5+ {[%emt 0:01:41]} Kc7 {[%emt 0:00:29]} 32. Rff1 {[%emt 0:04:14]} Re7 {[%emt 0:03:37]} 33. Qf4+ {[%emt 0:02:42]} Kb7 {[%emt 0:00:19]} 34. Rg2 {[%emt 0:00:22]} ({Weaker is} 34. Qxh6 Bf2 35. Qxf6 Bxg1 36. Rxg1 Qe4+ 37. Rg2 Qe1+ 38. Rg1 Qe4+ 39. Rg2 Qe1+ 40. Rg1 Qe4+ $11) 34... Qe4 {[%emt 0:01:03]} 35. Qxe4 {[%emt 0:00:59]} ({Don't take} 35. Qxh6 Bg5 36. Qf8 Kc7 $18) 35... Rxe4 {[%emt 0:00:16]} 36. Rd1 {[%emt 0:00:28]} Ka6 {[%emt 0:02:13]} 37. b4 {[%emt 0:01:00]} Be1 {[%emt 0:00:20]} 38. Rb1 {[%emt 0:06:44] Weighted Error Value: White=0.20 (precise) /Black=0.35.  Loses game:     	---       	Black=1      Mistake:       	White=3     	Black=3      Inaccurate:     	White=2     	Black=2      OK:         	White=18    	Black=13     Best:        	White=1     	Black=1} (38. Rd3 $18) 1/2-1/2

[Event "40th Cappelle Open 2024"]
[Site "Cappelle-la-Grande"]
[Date "2024.03.02"]
[Round "1.11"]
[White "Vlachos, Anatole"]
[Black "Nakahara, Kan"]
[Result "1-0"]
[ECO "C11"]
[WhiteElo "2479"]
[BlackElo "2072"]
[Annotator "TA"]
[PlyCount "71"]
[EventDate "2024.03.02"]
[EventType "swiss"]
[EventCountry "FRA"]
[SourceTitle "playchess.com"]
[Source "ChessBase"]
[SourceQuality "1"]
[TimeControl "40/5400+30:1800+30"]

{[%evp 21,71,33,54,-51,75,77,116,108,98,95,97,96,92,89,344,342,307,332,293,338,303,296,289,252,262,245,438,429,477,453,408,318,594,576,1197,1188,1552,1643,1694,1627,29983,29984,29961,29966,29992,29993,29996,29997,29997,29998,29998,29999]} 1. e4 {[%emt 0:00:04]} e6 {[%emt 0:00:13]} 2. d4 {[%emt 0:00:06]} d5 {[%emt 0:00:02]} 3. Nc3 {[%emt 0:00:09]} Nf6 {[%emt 0:00:14]} 4. e5 {[%emt 0:00:05]} Nfd7 {[%emt 0:00:03]} 5. f4 {[%emt 0:00:06]} c5 {[%emt 0:00:19]} 6. Nf3 {[%emt 0:00:06]} Nc6 {[%emt 0:00:48]} 7. Be3 {[%emt 0:00:07]} Qb6 {[%emt 0:03:40]} 8. Na4 {[%emt 0:00:06]} Qa5+ {[%emt 0:00:04]} 9. c3 {[%emt 0:00:05]} cxd4 {[%emt 0:06:31]} 10. b4 {[%emt 0:00:07]} Qc7 {[%emt 0:00:29]} 11. Nxd4 {[%emt 0:00:13]} a6 {[%emt 0:03:35]} 12. Bd3 {[%emt 0:02:00]} ({Better is} 12. Qd2 $14) 12... Nxd4 {[%emt 0:08:38]} (12... b5 $15 13. Nb2 Ncxe5 14. fxe5 Qxc3+ 15. Qd2 Bxb4) 13. Bxd4 $16 {[%emt 0:00:15]} Be7 {[%emt 0:00:10]} 14. O-O {[%emt 0:06:52][%cal Bh1f1,Bf1f3,Bf3h3][%mdl 32] White is better.} O-O {[%emt 0:04:01]} 15. Rf3 {[%emt 0:01:47] White is more active.} f5 {[%emt 0:05:40]} 16. Rh3 {[%emt 0:01:18]} g6 {[%emt 0:04:53] Prevents Qh5.} 17. g4 {[%emt 0:00:28] Black must now prevent gxf5.} a5 $2 {[%emt 0:10:52][%mdl 8192]} (17... Qc6 $16) 18. gxf5 $18 {[%emt 0:03:04]} exf5 {[%emt 0:00:43]} 19. Qb3 {[%emt 0:01:47] Prevents b5.} axb4 {[%emt 0:06:24]} 20. cxb4 {[%emt 0:02:41][%cal Bc3b4,Bb4b5][%mdl 32]} ({Much less strong is} 20. Qxd5+ $6 Kh8 $18) 20... Qc6 {[%emt 0:02:41]} 21. b5 {[%emt 0:01:09]} Qe6 {[%emt 0:01:53]} 22. Rc1 {[%emt 0:00:33]} Bd8 {[%emt 0:12:15]} 23. b6 {[%emt 0:15:48]} Be7 $2 {[%emt 0:02:12]} (23... Rf7 {was called for.} 24. Bf1 Nf8) 24. Bf1 {[%emt 0:01:48]} Nb8 {[%emt 0:02:09]} 25. Bg2 {[%emt 0:00:19] Black is weak on the dark squares} Rd8 {[%emt 0:03:23]} 26. Nc5 {[%emt 0:02:29]} Qf7 {[%emt 0:09:54] [#]} (26... Bxc5 27. Rxc5 Nc6 28. Bxd5 (28. Rxd5 Re8 $18) 28... Rxd5 29. Rxd5 (29. Qxd5 Ra4 $18) 29... Ra4) 27. e6 $1 {[%emt 0:00:33][%mdl 512]} Bxe6 {[%emt 0:01:02]} (27... Qf8 28. Nd7) 28. Nxe6 {[%emt 0:00:19]} Qxe6 {[%emt 0:00:02]} 29. Re3 {[%emt 0:00:13]} Qd6 {[%emt 0:01:42] [#]} 30. Rxe7 $1 {[%emt 0:02:11][%mdl 512]} Qxe7 {[%emt 0:01:31]} (30... Nc6 31. Rg7+) 31. Bxd5+ {[%emt 0:00:06] White mates.} Kf8 {[%emt 0:01:00][%cal Bg8f8,Bf8e7,Be7f6][%mdl 32]} 32. Bc5 {[%emt 0:00:05] This pair of bishops is nice.} Rd6 {[%emt 0:00:27]} 33. Bxd6 {[%emt 0:01:23]} Qxd6 {[%emt 0:00:02]} 34. Rc8+ {[%emt 0:00:09]} Ke7 {[%emt 0:02:50]} 35. Qe3+ {[%emt 0:00:02]} Kf6 {[%emt 0:00:09]} 36. Qd4+ {[%emt 0:00:07] Black got outplayed after the opening.   Weighted Error Value: White=0.15 (very precise) /Black=0.67.  Loses game:     	---       	Black=1      Mistake:       	---       	Black=3      Inaccurate:     	---       	Black=3      OK:         	White=9     	Black=8      Best:        	White=1     	---} 1-0